bitfinex/quotes_SOLUSD_20250313
["timestamp","ask_amount","ask_price","bid_price","bid_amount"]
[1741853580399,0.03,125.48,125.47,7.06]
[1741853581123,0.03,125.48,125.47,15.03]
[1741853581320,0.03,125.48,125.47,7.06]
[1741853582199,0.03,125.48,125.47,15.03]
[1741853582399,0.03,125.48,125.47,38.75315152]
[1741853582611,0.03,125.48,125.47,120.75315152]
[1741853583022,7.9635,125.58,125.5,23.72315152]
[1741853583321,23.72315152,125.56,125.5,105.72315152]
[1741853583523,23.72315152,125.56,125.51,7.06]
[1741853583902,23.72315152,125.55,125.51,7.06]
[1741853584103,23.72315152,125.54,125.51,89.06]
[1741853585403,3.67,125.59,125.51,89.06]
[1741853585803,23.72315152,125.55,125.51,89.06]
[1741853586113,23.72315152,125.56,125.51,112.78315152]
[1741853586416,3.67,125.59,125.52,23.72315152]
[1741853586417,11.6324,125.59,125.52,23.72315152]
[1741853586623,23.72315152,125.57,125.52,105.72315152]
[1741853587125,23.72315152,125.56,125.52,82.0]
[1741853587710,0.03,125.56,125.52,113.68975152]
[1741853588004,23.75315152,125.56,125.52,82.0]
[1741853589313,23.72315152,125.55,125.52,82.0]
[1741853590026,31.68815152,125.55,125.52,82.0]
[1741853590528,23.72315152,125.54,125.51,7.06]
[1741853590902,23.72315152,125.54,125.5,82.0]
[1741853591109,23.72315152,125.53,125.5,89.06]
[1741853591405,23.72315152,125.52,125.5,82.0]
[1741853591909,27.8773,125.55,125.5,82.0]
[1741853592111,31.69045152,125.52,125.5,82.0]
[1741853592923,23.72315152,125.51,125.48,8.1141]
[1741853593112,7.9673,125.52,125.48,6.5174]
[1741853593113,23.72315152,125.5,125.48,6.5174]
[1741853593426,23.72315152,125.49,125.46,89.06]
[1741853594208,7.9693,125.48,125.46,89.06]
[1741853595328,7.9693,125.48,125.46,7.06]
[1741853603040,31.69205152,125.49,125.46,7.06]
[1741853603733,23.72315152,125.5,125.46,7.06]
[1741853603941,7.9681,125.5,125.46,30.78315152]
[1741853604435,38.56504886,125.54,125.47,23.72315152]
[1741853604436,23.72315152,125.52,125.47,23.72315152]
[1741853604629,23.72315152,125.52,125.48,23.72315152]
[1741853604834,31.68865152,125.54,125.49,23.72315152]
[1741853605034,31.68865152,125.54,125.5,7.04]
[1741853606072,31.68835152,125.55,125.5,30.76315152]
[1741853607048,31.68835152,125.55,125.5,7.04]
[1741853607049,23.72315152,125.52,125.5,7.04]
[1741853607238,23.72315152,125.51,125.5,7.04]
[1741853607442,23.72315152,125.51,125.47,89.04]
[1741853607745,27.8775,125.55,125.47,120.73305152]
[1741853607746,23.72315152,125.52,125.47,120.73305152]
[1741853608126,23.72315152,125.52,125.47,112.76315152]
[1741853609149,7.9674,125.51,125.47,112.76315152]
[1741853611149,31.69055152,125.51,125.47,89.04]
[1741853612028,31.72055152,125.51,125.47,89.04]
[1741853613764,23.72315152,125.48,125.46,0.063]
[1741853614334,23.72315152,125.47,125.46,0.063]
[1741853615565,31.69315152,125.47,125.46,0.063]
[1741853616035,23.72315152,125.48,125.46,0.063]
[1741853618068,27.8884,125.5,125.46,0.063]
[1741853618069,23.72315152,125.47,125.46,0.063]
[1741853619961,31.69315152,125.47,125.46,0.063]
[1741853621487,50.34280038,125.47,125.46,0.063]
[1741853622270,31.69315152,125.47,125.46,0.063]
[1741853625974,50.34280038,125.47,125.46,0.063]
[1741853626673,49.84280038,125.47,125.46,0.063]
[1741853628289,41.79869923,125.47,125.46,0.063]
[1741853635919,41.79869923,125.47,125.46,0.0001]
[1741853637014,20.0,125.43,125.41,0.0001]
[1741853637205,33.82869923,125.42,125.39,0.063]
[1741853637408,15.17905037,125.4,125.39,0.063]
[1741853638085,23.15345037,125.4,125.39,0.063]
[1741853638519,15.17905037,125.4,125.39,0.063]
[1741853639318,23.15315037,125.41,125.39,0.063]
[1741853639501,15.17905037,125.4,125.39,0.063]
[1741853640305,23.15345037,125.4,125.39,0.063]
[1741853643110,23.15345037,125.4,125.35,0.063]
[1741853643111,20.0,125.37,125.35,0.063]
[1741853643310,15.17905037,125.36,125.33,0.063]
[1741853643499,15.17905037,125.34,125.33,0.063]
[1741853644492,23.15725037,125.34,125.33,0.063]
[1741853646434,31.74568905,125.34,125.33,0.063]
[1741853647937,43.76748905,125.37,125.33,0.063]
[1741853647938,31.74538905,125.35,125.33,0.063]
[1741853648335,7.9779,125.35,125.33,0.063]
[1741853648648,31.74538905,125.35,125.33,0.063]
[1741853649135,23.76748905,125.34,125.33,0.063]
[1741853649635,31.74538905,125.35,125.33,0.063]
[1741853652147,23.76748905,125.34,125.33,0.063]
[1741853653027,23.76748905,125.36,125.33,7.123]
[1741853653536,23.76748905,125.36,125.33,13.1597]
[1741853653836,23.76748905,125.36,125.33,21.1385]
[1741853654051,23.76748905,125.37,125.33,21.1385]
[1741853654226,23.76748905,125.36,125.33,21.1385]
[1741853654628,23.76748905,125.36,125.33,14.0785]
[1741853654821,23.76748905,125.36,125.33,21.1385]
[1741853655349,23.76748905,125.36,125.33,13.1597]
[1741853656039,23.76748905,125.36,125.33,0.063]
[1741853656040,23.76748905,125.34,125.33,0.063]
[1741853657847,31.74568905,125.34,125.33,0.063]
[1741853659363,31.74568905,125.34,125.3,96.6142]
[1741853659850,31.74678905,125.33,125.3,96.6142]
[1741853660223,23.76748905,125.32,125.3,14.6142]
[1741853660429,23.76748905,125.31,125.28,89.123]
[1741853661146,23.76748905,125.32,125.28,89.123]
[1741853661749,23.76748905,125.32,125.28,97.1048]
[1741853663151,31.74708905,125.32,125.28,89.123]
[1741853663346,23.76748905,125.31,125.28,89.123]
[1741853663952,31.74708905,125.32,125.28,89.123]
[1741853664261,23.76748905,125.31,125.28,89.123]
[1741853666256,15.21055923,125.31,125.28,89.123]
[1741853666866,15.21055923,125.31,125.28,7.123]
[1741853667167,15.21055923,125.3,125.28,0.063]
[1741853667662,15.21055923,125.29,125.28,0.063]
[1741853668473,23.19195923,125.29,125.28,0.063]
[1741853669372,15.21055923,125.29,125.28,0.063]
[1741853670365,23.77227116,125.3,125.28,0.063]
[1741853670566,7.9795,125.32,125.28,0.063]
[1741853670862,23.77227116,125.3,125.28,0.063]
[1741853674956,23.77227116,125.32,125.28,0.063]
[1741853676067,23.77227116,125.31,125.28,0.063]
[1741853676271,23.77227116,125.3,125.28,0.063]
[1741853678166,23.77227116,125.29,125.28,0.063]
[1741853680282,31.75367116,125.29,125.28,0.063]
[1741853685680,50.68764316,125.29,125.28,0.063]
[1741853685978,43.77227116,125.27,125.26,0.063]
[1741853686356,62.42192002,125.27,125.26,0.063]
[1741853688057,70.40462002,125.27,125.26,0.063]
[1741853689879,70.68894316,125.27,125.26,0.0001]
[1741853692360,0.28432314,125.26,125.2,7.7949]
[1741853692563,23.77227116,125.21,125.2,7.7949]
[1741853692762,23.77227116,125.21,125.2,6.2571]
[1741853693191,23.77227116,125.21,125.2,0.063]
[1741853694497,31.75877116,125.21,125.2,0.063]
[1741853696287,23.22451964,125.21,125.2,0.063]
[1741853699191,41.8741685,125.21,125.2,0.063]
[1741853699485,15.23801964,125.2,125.19,0.063]
[1741853699887,41.8748685,125.2,125.19,0.063]
[1741853700291,0.237,125.18,125.16,0.063]
[1741853700589,15.23801964,125.17,125.16,0.063]
[1741853702773,0.237,125.18,125.16,0.063]
[1741853704286,43.22601964,125.19,125.14,30.86951964]
[1741853704596,35.23801964,125.19,125.14,30.86951964]
[1741853704894,43.22591964,125.19,125.14,30.86951964]
[1741853705489,7.9875,125.2,125.14,30.86951964]
[1741853705677,23.22551964,125.2,125.15,15.23801964]
[1741853705993,23.22551964,125.2,125.15,97.23801964]
[1741853706194,15.23801964,125.2,125.15,97.23801964]
[1741853706371,15.23801964,125.2,125.15,82.0]
[1741853706571,15.23801964,125.2,125.16,7.9897]
[1741853706768,15.23801964,125.2,125.17,7.06]
[1741853707586,18.64964886,125.23,125.17,7.06]
[1741853707587,15.23801964,125.22,125.17,7.06]
[1741853707781,15.23801964,125.21,125.17,7.06]
[1741853708382,26.63454886,125.24,125.17,22.29801964]
[1741853708584,103.34152314,125.27,125.19,23.20011964]
[1741853708585,7.9833,125.26,125.19,23.20011964]
[1741853708780,15.23801964,125.24,125.19,105.20011964]
[1741853709590,15.23801964,125.24,125.2,0.28432314]
[1741853709791,15.23801964,125.24,125.19,105.20011964]
[1741853710480,15.23801964,125.24,125.19,113.18771964]
[1741853710679,15.23801964,125.24,125.19,97.9497]
[1741853710880,18.64964886,125.26,125.19,97.9497]
[1741853710881,20.0,125.26,125.2,15.52234278]
[1741853711207,15.23801964,125.27,125.21,22.29801964]
[1741853711689,15.23801964,125.27,125.21,334.29801964]
[1741853712075,15.23801964,125.26,125.21,104.29801964]
[1741853712282,15.23801964,125.26,125.21,89.06]
[1741853712601,15.23801964,125.26,125.21,97.0465]
[1741853712802,35.23801964,125.27,125.21,112.28451964]
[1741853712998,15.23801964,125.26,125.21,104.29801964]
[1741853713799,15.23801964,125.26,125.21,112.28431964]
[1741853713997,15.23801964,125.27,125.22,15.23801964]
[1741853714297,23.24971964,125.29,125.24,7.0192]
[1741853715607,15.23801964,125.27,125.24,7.0192]
[1741853715799,15.23801964,125.26,125.24,7.0192]
[1741853717007,27.9654,125.29,125.24,7.0192]
[1741853717008,15.23801964,125.27,125.24,7.0192]
[1741853717402,15.23801964,125.26,125.24,7.0192]
[1741853717986,7.9821,125.28,125.21,8.1078]
[1741853717987,15.23801964,125.25,125.21,8.1078]
[1741853718197,15.23801964,125.22,125.19,88.56]
[1741853718511,18.64964886,125.27,125.19,7.06]
[1741853718512,23.80279561,125.21,125.19,7.06]
[1741853719004,23.80279561,125.2,125.19,7.06]
[1741853719194,31.78959561,125.21,125.19,7.123]
[1741853719396,31.78959561,125.21,125.19,0.063]
[1741853721103,23.80279561,125.2,125.19,0.063]
[1741853722083,31.78999561,125.2,125.19,0.063]
[1741853723887,23.80279561,125.2,125.19,0.063]
[1741853724887,31.78999561,125.2,125.19,0.063]
[1741853726811,50.43964447,125.2,125.19,0.063]
[1741853727482,23.80279561,125.2,125.19,0.063]
[1741853728382,31.78999561,125.2,125.19,0.063]
[1741853733292,31.78959561,125.21,125.19,0.063]
[1741853733507,7.9862,125.22,125.19,0.063]
[1741853733809,43.80279561,125.2,125.19,0.063]
[1741853734989,51.78999561,125.2,125.19,0.063]
[1741853735899,70.43964447,125.2,125.19,0.063]
[1741853737216,18.64964886,125.19,125.11,7.8318]
[1741853737397,23.80279561,125.15,125.11,14.9318]
[1741853737604,23.80279561,125.16,125.11,22.9247]
[1741853737801,48.09736157,125.2,125.11,22.9247]
[1741853737802,23.80279561,125.17,125.12,24.08711875]
[1741853738025,23.80279561,125.17,125.12,23.80279561]
[1741853738213,23.80279561,125.15,125.11,227.1318]
[1741853738403,23.80279561,125.15,125.12,7.1]
[1741853738606,23.80279561,125.16,125.12,7.1]
[1741853739423,23.80279561,125.18,125.13,23.80279561]
[1741853739732,23.80279561,125.19,125.13,105.30279561]
[1741853739936,23.80279561,125.18,125.13,105.30279561]
[1741853740122,23.80279561,125.19,125.13,105.30279561]
[1741853740330,43.80279561,125.2,125.14,24.08711875]
[1741853740720,43.80279561,125.2,125.14,23.80279561]
[1741853740935,23.80279561,125.19,125.13,105.30279561]
[1741853741615,42.45244447,125.23,125.14,31.79379561]
[1741853741814,23.80279561,125.2,125.15,32.00469561]
[1741853742017,43.80279561,125.21,125.16,7.1]
[1741853742715,23.80279561,125.21,125.16,7.1]
[1741853742931,23.80279561,125.21,125.17,7.9891]
[1741853744311,18.64964886,125.24,125.17,31.79189561]
[1741853744616,23.80279561,125.23,125.17,113.29189561]
[1741853744816,23.80279561,125.23,125.18,23.80279561]
[1741853745019,7.9836,125.26,125.2,23.80279561]
[1741853745227,1.5108,125.28,125.21,7.1]
[1741853745228,23.80279561,125.25,125.21,7.1]
[1741853745437,23.80279561,125.26,125.21,7.1]
[1741853745736,23.80279561,125.25,125.21,7.1]
[1741853746112,23.80279561,125.24,125.21,7.1]
[1741853747450,31.78739561,125.24,125.21,7.1]
[1741853747829,23.80279561,125.25,125.21,7.1]
[1741853748018,23.80279561,125.24,125.21,7.1]
[1741853749027,31.78759561,125.24,125.21,7.1]
[1741853749719,23.80279561,125.24,125.21,7.1]
[1741853750743,18.64964886,125.27,125.21,7.1]
[1741853750948,23.80279561,125.25,125.21,7.1]
[1741853751119,23.80279561,125.25,125.21,15.0865]
[1741853751320,23.80279561,125.26,125.21,96.5865]
[1741853751522,23.80279561,125.26,125.21,120.38929561]
[1741853751733,23.80279561,125.27,125.22,23.80279561]
[1741853752239,23.80279561,125.27,125.22,0.28432314]
[1741853752568,23.80279561,125.27,125.22,81.78432314]
[1741853753559,31.78559561,125.27,125.22,89.76982314]
[1741853753860,23.80279561,125.26,125.22,89.76982314]
[1741853754064,23.80279561,125.26,125.22,81.5]
[1741853754229,23.80279561,125.23,125.22,81.5]
[1741853754435,23.80279561,125.23,125.2,89.5081]
[1741853756055,31.78749561,125.24,125.2,89.5081]
[1741853756462,23.80279561,125.23,125.2,89.5081]
[1741853757657,31.78809561,125.23,125.2,89.5081]
[1741853758261,23.80279561,125.23,125.2,89.5081]
[1741853759042,31.78799561,125.24,125.2,89.5081]
[1741853763066,23.80279561,125.23,125.2,89.5081]
[1741853763948,7.9852,125.24,125.2,89.5081]
[1741853764149,31.78799561,125.24,125.2,89.5081]
[1741853764353,0.03,125.27,125.2,89.5081]
[1741853764551,20.0,125.25,125.2,121.29799561]
[1741853765346,23.80279561,125.26,125.21,23.80279561]
[1741853765547,31.81579561,125.27,125.21,23.80279561]
[1741853765747,23.80279561,125.26,125.21,23.80279561]
[1741853765956,23.80279561,125.26,125.2,117.4632]
[1741853766162,23.80279561,125.24,125.2,89.5081]
[1741853766464,23.80279561,125.24,125.2,97.4952]
[1741853766662,23.80279561,125.24,125.2,409.4952]
[1741853766966,23.80279561,125.25,125.2,433.29799561]
[1741853767167,23.80279561,125.24,125.2,401.5081]
[1741853767372,23.80279561,125.25,125.2,425.31089561]
[1741853767557,23.80279561,125.25,125.2,121.29789561]
[1741853768074,23.80279561,125.24,125.2,97.4951]
[1741853768260,23.80279561,125.25,125.2,97.4951]
[1741853768658,23.80279561,125.24,125.2,97.4951]
[1741853768864,23.80279561,125.23,125.2,89.5081]
[1741853769058,23.80279561,125.23,125.2,81.5]
[1741853769264,23.80279561,125.22,125.19,7.143]
[1741853770369,23.80279561,125.23,125.19,15.1306]
[1741853770667,31.78769561,125.24,125.19,15.1306]
[1741853770868,23.80279561,125.25,125.2,23.80279561]
[1741853771068,43.80279561,125.26,125.21,23.80279561]
[1741853771453,23.80279561,125.25,125.2,24.08711875]
[1741853771653,23.80279561,125.25,125.21,7.9865]
[1741853771877,51.78629561,125.26,125.21,7.9865]
[1741853772072,43.80279561,125.26,125.21,89.4865]
[1741853772477,23.83279561,125.27,125.22,31.91199561]
[1741853772660,31.81559561,125.27,125.22,113.41199561]
[1741853772862,23.80279561,125.26,125.23,7.1]
[1741853773655,23.83279561,125.27,125.23,15.0849]
[1741853774177,23.80279561,125.26,125.23,7.1]
[1741853775179,31.81559561,125.27,125.23,7.1]
[1741853775484,23.83279561,125.27,125.23,15.0852]
[1741853775867,23.80279561,125.26,125.23,15.0852]
[1741853776066,23.80279561,125.26,125.23,7.1]
[1741853776272,23.80279561,125.25,125.23,7.1]
[1741853776461,23.80279561,125.24,125.22,81.5]
[1741853776651,23.80279561,125.23,125.21,7.1]
[1741853777782,23.80279561,125.22,125.21,7.1]
[1741853779476,23.80279561,125.22,125.19,8.1394]
[1741853779683,23.80279561,125.2,125.19,0.063]
[1741853782078,50.43964447,125.2,125.19,0.063]
[1741853782662,43.76729561,125.23,125.19,0.063]
[1741853782889,23.80279561,125.21,125.19,0.063]
[1741853783462,23.80279561,125.2,125.19,0.063]
[1741853783870,23.80279561,125.21,125.19,0.063]
[1741853784158,42.45244447,125.2,125.19,0.063]
[1741853785580,50.43964447,125.2,125.19,0.063]
[1741853786295,50.72396761,125.2,125.19,0.063]
[1741853786689,23.80279561,125.15,125.13,81.563]
[1741853786869,23.80279561,125.15,125.13,0.063]
[1741853787182,23.80279561,125.14,125.13,0.063]
[1741853787682,31.79379561,125.14,125.13,0.063]
[1741853788066,23.80279561,125.14,125.13,0.063]
[1741853788266,31.79379561,125.14,125.13,0.063]
[1741853788570,23.80279561,125.14,125.13,0.063]
[1741853788770,23.80279561,125.15,125.13,0.063]
[1741853789172,23.80279561,125.14,125.13,0.063]
[1741853789788,31.79379561,125.14,125.13,0.063]
[1741853790475,23.80279561,125.14,125.13,0.063]
[1741853790679,23.80279561,125.15,125.13,0.063]
[1741853790886,23.80279561,125.14,125.13,0.063]
[1741853791371,23.80279561,125.15,125.13,0.063]
[1741853792489,27.35262314,125.2,125.13,7.143]
[1741853792490,26.63744886,125.19,125.13,7.143]
[1741853792796,23.80279561,125.17,125.13,7.143]
[1741853794191,23.80279561,125.16,125.13,7.143]
[1741853794391,18.64964886,125.19,125.13,7.143]
[1741853794692,23.80279561,125.18,125.13,38.93729561]
[1741853795382,23.80279561,125.2,125.14,31.51869561]
[1741853795589,23.80279561,125.2,125.15,7.9898]
[1741853797589,23.80279561,125.19,125.15,7.9898]
[1741853798692,20.0,125.22,125.16,23.80279561]
[1741853798881,23.80279561,125.21,125.17,7.1]
[1741853800696,23.80279561,125.21,125.18,7.9884]
[1741853800893,7.9853,125.23,125.18,7.9884]
[1741853801085,23.80279561,125.22,125.18,7.9884]
[1741853801479,23.80279561,125.21,125.17,7.1]
[1741853801671,23.80279561,125.21,125.17,15.0888]
[1741853802197,23.80279561,125.2,125.17,15.0888]
[1741853803077,23.80279561,125.21,125.17,15.0888]
[1741853803276,23.80279561,125.21,125.17,7.1]
[1741853803599,23.80279561,125.21,125.17,15.0891]
[1741853804794,31.78949561,125.21,125.17,15.0891]
[1741853805097,23.80279561,125.19,125.17,7.1]
[1741853807291,31.79059561,125.19,125.17,7.1]
[1741853807485,23.80279561,125.18,125.15,0.063]
[1741853808198,23.80279561,125.18,125.15,8.0532]
[1741853808582,23.80279561,125.2,125.15,8.0532]
[1741853808802,23.80279561,125.21,125.15,113.35599561]
[1741853809497,23.80279561,125.21,125.16,23.80279561]
[1741853809687,23.80279561,125.2,125.15,89.5532]
[1741853810007,23.80279561,125.2,125.15,113.35599561]
[1741853811101,31.78939561,125.21,125.15,113.35599561]
[1741853811290,23.80279561,125.21,125.15,113.35599561]
[1741853812395,31.78899561,125.22,125.16,23.80279561]
[1741853812597,23.80279561,125.22,125.17,30.90279561]
[1741853813199,31.78869561,125.22,125.17,30.90279561]
[1741853813382,23.80279561,125.2,125.17,7.1]
[1741853813581,7.9859,125.22,125.17,7.1]
[1741853813582,23.83279561,125.21,125.17,7.1]
[1741853813782,23.83279561,125.21,125.17,15.0891]
[1741853814793,0.03,125.21,125.17,15.0891]
[1741853814994,31.81949561,125.21,125.17,15.0891]
[1741853815299,31.81949561,125.21,125.17,7.1]
[1741853816808,23.80279561,125.2,125.17,7.1]
[1741853818603,23.80279561,125.19,125.15,81.563]
[1741853818808,31.79089561,125.19,125.16,7.08]
[1741853820503,31.79009561,125.2,125.16,7.08]
[1741853820698,23.80279561,125.2,125.16,7.08]
[1741853821011,31.78999561,125.2,125.16,7.08]
[1741853823488,23.80279561,125.19,125.16,7.08]
[1741853824298,23.22695997,125.2,125.16,15.0697]
[1741853825010,23.22695997,125.2,125.16,7.08]
[1741853825403,23.22695997,125.2,125.16,7.143]
[1741853825798,0.03,125.19,125.16,7.143]
[1741853825995,0.03,125.19,125.16,15.1326]
[1741853827008,0.03,125.19,125.16,7.143]
[1741853827207,15.26975997,125.19,125.16,7.143]
[1741853828510,15.23975997,125.18,125.16,7.143]
[1741853828820,33.88940883,125.17,125.16,0.063]
[1741853829192,41.87850883,125.17,125.16,0.063]
[1741853832416,50.47061406,125.17,125.16,0.063]
[1741853834890,74.5868024,125.17,125.16,0.0001]
[1741853835092,18.933972,125.16,125.15,0.063]
[1741853835317,38.64964886,125.14,125.13,0.063]
[1741853835491,70.47251406,125.14,125.13,0.063]
[1741853836912,77.22405007,125.14,125.13,0.063]
[1741853837918,78.87555007,125.14,125.13,0.063]
[1741853838113,20.0,125.1,125.09,0.063]
[1741853838296,62.48151406,125.1,125.09,0.063]
[1741853840206,43.8318652,125.1,125.09,0.063]
[1741853840412,23.8318652,125.11,125.09,0.063]
[1741853841314,6.35506157,125.17,125.09,0.063]
[1741853841503,23.8318652,125.14,125.09,23.8948652]
[1741853841701,23.8318652,125.14,125.09,105.3948652]
[1741853841901,23.8318652,125.14,125.09,81.563]
[1741853842500,31.8230652,125.14,125.09,89.5568]
[1741853842700,23.8318652,125.13,125.09,89.5568]
[1741853843416,23.8318652,125.13,125.09,81.563]
[1741853844129,23.8318652,125.12,125.09,81.563]
[1741853845827,43.8318652,125.13,125.09,89.5571]
[1741853846035,7.99,125.16,125.1,8.2294]
[1741853846226,23.8318652,125.15,125.11,7.1]
[1741853846528,23.8318652,125.15,125.11,15.0928]
[1741853846730,20.14206157,125.19,125.11,15.0928]
[1741853846906,23.8318652,125.16,125.11,38.9246652]
[1741853847106,23.8318652,125.14,125.11,7.1]
[1741853849315,31.8232652,125.14,125.11,7.1]
[1741853849631,38.62354886,125.17,125.11,7.1]
[1741853849632,31.8224652,125.15,125.11,7.1]
[1741853850300,23.8318652,125.14,125.11,7.1]
[1741853850723,23.8318652,125.14,125.11,7.163]
[1741853851822,31.8224652,125.15,125.11,15.1557]
[1741853852027,23.8318652,125.15,125.11,15.1557]
[1741853854229,15.25055358,125.15,125.11,15.1557]
[1741853854623,15.25055358,125.14,125.11,7.163]
[1741853854810,15.25055358,125.13,125.11,7.163]
[1741853855006,15.25055358,125.13,125.11,0.063]
[1741853855526,23.24255358,125.13,125.11,0.063]
[1741853856335,31.82942217,125.13,125.11,0.063]
[1741853857132,23.83742217,125.12,125.11,0.063]
[1741853857721,31.82972217,125.12,125.11,0.063]
[1741853858331,50.47937103,125.12,125.11,0.063]
[1741853860119,31.82972217,125.12,125.11,0.063]
[1741853860328,31.82932217,125.13,125.11,0.063]
[1741853864439,23.83742217,125.13,125.11,0.063]
[1741853864737,31.82922217,125.13,125.11,0.063]
[1741853864941,23.83742217,125.12,125.11,0.063]
[1741853866745,31.82922217,125.13,125.11,0.063]
[1741853866947,23.83742217,125.13,125.11,0.063]
[1741853868052,23.83742217,125.14,125.11,0.063]
[1741853868261,23.83742217,125.14,125.11,7.123]
[1741853869259,23.83742217,125.13,125.11,7.123]
[1741853869848,43.83742217,125.12,125.11,7.123]
[1741853870033,43.83742217,125.12,125.11,0.063]
[1741853870233,51.82972217,125.12,125.11,0.063]
[1741853873768,70.47937103,125.12,125.11,0.063]
[1741853873962,50.76369417,125.12,125.11,0.0001]
[1741853874166,20.0,125.08,125.06,0.063]
[1741853874372,42.48707103,125.07,125.06,0.063]
[1741853875869,50.48257103,125.07,125.06,0.063]
[1741853879080,50.48257103,125.07,125.03,0.063]
[1741853879081,38.79181043,125.05,125.03,0.063]
[1741853879277,62.77139417,125.05,125.03,0.063]
[1741853879451,18.79181043,125.04,125.03,0.063]
[1741853879650,38.79181043,125.01,125.0,0.063]
[1741853879873,18.933972,125.0,124.99,0.337]
[1741853880052,42.77139417,125.0,124.99,0.337]
[1741853880677,42.6292326,125.0,124.99,0.337]
[1741853881154,42.77139417,125.0,124.99,0.337]
[1741853881348,0.14216157,124.99,124.98,0.063]
[1741853881548,44.35549417,124.99,124.97,0.063]
[1741853881756,42.6292326,124.98,124.97,0.063]
[1741853881961,50.6304326,124.98,124.97,0.063]
[1741853882159,20.0,124.98,124.97,0.063]
[1741853882684,23.83742217,125.0,124.97,0.063]
[1741853882892,18.64964886,125.02,124.97,0.063]
[1741853883187,23.83742217,125.0,124.97,0.063]
[1741853883356,23.83742217,125.02,124.97,30.31072217]
[1741853883758,23.83742217,125.03,124.98,23.83742217]
[1741853883971,23.83742217,125.03,124.99,8.0006]
[1741853884153,23.83742217,125.03,125.0,7.14]
[1741853884362,23.83742217,125.02,125.0,7.14]
[1741853884559,23.83742217,125.01,125.0,7.14]
[1741853884858,20.0,125.05,125.0,7.14]
[1741853885065,23.83742217,125.03,125.0,7.14]
[1741853885577,23.83742217,125.05,125.0,7.14]
[1741853885870,23.83742217,125.03,125.0,7.14]
[1741853886086,23.83742217,125.01,124.98,7.16]
[1741853886385,23.83742217,125.02,124.98,7.16]
[1741853886584,23.83742217,125.0,124.98,7.16]
[1741853886762,23.83742217,125.0,124.99,0.063]
[1741853886958,20.0,125.01,124.99,0.063]
[1741853887160,23.83742217,125.0,124.99,0.063]
[1741853887804,42.48707103,125.0,124.99,0.063]
[1741853888001,50.48707103,125.0,124.99,0.063]
[1741853888311,50.6292326,125.0,124.99,0.063]
[1741853888486,50.77139417,125.0,124.99,0.063]
[1741853890488,20.0,124.98,124.97,0.063]
[1741853890702,42.6292326,124.98,124.97,0.063]
[1741853891308,42.48707103,124.98,124.97,0.063]
[1741853891504,42.6292326,124.98,124.97,0.063]
[1741853891706,42.77139417,124.98,124.97,0.063]
[1741853892108,50.77259417,124.98,124.97,0.063]
[1741853893218,42.48707103,124.98,124.97,0.063]
[1741853893699,50.48827103,124.98,124.97,0.063]
[1741853894406,50.6304326,124.98,124.97,0.063]
[1741853894914,50.48827103,124.98,124.97,0.063]
[1741853895496,62.48707103,124.98,124.97,0.063]
[1741853896017,62.6292326,124.98,124.97,0.063]
[1741853896310,62.77139417,124.98,124.97,0.063]
[1741853896520,70.77259417,124.98,124.97,0.063]
[1741853896699,70.77259417,124.98,124.93,0.063]
[1741853896905,23.83742217,124.94,124.93,0.063]
[1741853897105,28.0012,124.98,124.93,0.063]
[1741853897314,18.64964886,124.97,124.93,0.063]
[1741853897495,42.48707103,124.97,124.93,0.063]
[1741853897814,23.83742217,124.95,124.93,0.063]
[1741853898025,43.83742217,124.94,124.93,0.063]
[1741853899391,51.84122217,124.94,124.93,0.063]
[1741853900506,43.83742217,124.94,124.93,0.063]
[1741853901115,23.83742217,124.95,124.93,0.063]
[1741853902319,31.84062217,124.95,124.93,0.063]
[1741853902618,23.83742217,124.95,124.93,0.063]
[1741853903515,23.83742217,124.96,124.93,0.063]